Cogmind - Beta 13 @@@ ROGUE MODE // 2024.04.29 @ 17:09:12 Player: Barbarossa Result: Self-destructed Performance ------------- Evolutions (2) 1000 Regions Visited (5) 1000 Robots Destroyed (28) 140 Value Destroyed (338) 338 Prototype IDs (3) 60 Alien Tech Used (0) 0 Bonus (-591) -591 TOTAL SCORE: 1947 Bonus ------- Follower Combat Kills 416 Friendly Fire -1007 Cogmind --------- Core Integrity 320/550 Matter 290/300 Energy 86/100 System Corruption 0% Temperature Cool (0) Movement Walking (120) Location -8/Materials Parts ------- > --- POWER (1) -------- (None) > --- PROPULSION (4) --- Improved Aluminum Leg Improved Aluminum Leg > --- UTILITY (3) ------ Cooling System Large Storage Unit > --- WEAPON (3) ------- (None) > --- INVENTORY (15) --- Light Ion Engine Improved Treads Improved Treads Improved Treads Cooling System Improved Targeting Computer System Shield Peak State ------------ > --- POWER ------------ Ion Engine > --- PROPULSION ------- Improved Aluminum Leg Improved Aluminum Leg Improved Aluminum Leg Improved Aluminum Leg > --- UTILITY ---------- Cooling System Small Storage Unit Large Storage Unit > --- WEAPON ----------- Beam Rifle Particle Gun > --- INVENTORY -------- Light Ion Engine Improved Treads Improved Treads Improved Treads Improved Aluminum Leg Improved Aluminum Leg Cooling System Improved Targeting Computer [Rating: 18] Favorites ----------- Power Ion Engine Engine Ion Engine Propulsion Improved Aluminum Leg Leg Improved Aluminum Leg Utility Small Storage Unit Device Heat Sink Storage Small Storage Unit Weapon Beam Rifle Energy Gun Beam Rifle Ballistic Gun Assault Rifle Launcher Rocket Launcher Special Weapon Mining Laser Build | -11 -10 -10 -9 -9 -8 ------- Run | Yrd Mat Min Mat Sto Mat Slots Evolved 4 | . . . 2 . 2 Power . | . . . . . . Propulsion 2 | . . . 2 . . Utility 1 | . . . . . 1 Weapon 1 | . . . . . 1 Parts Attached 26 | . . 4 2 16 4 Power 2 | . . . . 1 1 Engine 2 | . . . . 1 1 Core . | . . . . . . Reactor . | . . . . . . Propulsion 12 | . . 1 2 7 2 Treads . | . . . . . . Leg 12 | . . 1 2 7 2 Wheel . | . . . . . . Hover . | . . . . . . Flight . | . . . . . . Utility 4 | . . . . 3 1 Device 3 | . . . . 3 . Storage 1 | . . . . . 1 Processor . | . . . . . . Hackware . | . . . . . . Protection . | . . . . . . Artifact . | . . . . . . Weapon 8 | . . 3 . 5 . Energy Gun 6 | . . 3 . 3 . Energy Cannon . | . . . . . . Ballistic Gun . | . . . . . . Ballistic Cannon . | . . . . . . Launcher 1 | . . . . 1 . Special Weapon 1 | . . . . 1 . Impact Weapon . | . . . . . . Slashing Weapon . | . . . . . . Piercing Weapon . | . . . . . . Special Melee Weapon . | . . . . . . Unidentified Prototypes . | . . . . . . Parts Lost 10 | . . 1 . 1 8 Power 2 | . . . . . 2 Propulsion 5 | . . 1 . . 4 Utility . | . . . . . . Weapon 3 | . . . . 1 2 Highest Loss Streak 4 | . . 1 . 1 4 To Critical Strikes 1 | . . . . . 1 Average Slot Usage (%) 88 | . 85 84 69 99 68 Engine 11 | . 14 14 11 10 7 Leg 36 | . 28 27 25 44 31 Device 6 | . . . . 10 9 Storage 11 | . 14 14 11 11 9 Energy Gun 17 | . 14 16 22 20 11 Ballistic Gun 3 | . 14 11 . . . Naked Turns . | . . . . . . Heaviest Build 33 | 14 14 14 13 19 33 Greatest Support 52 | 20 20 20 40 52 52 Greatest Overweight (x) 1 | . . 1 . . 1 Average Overweight (x) . | . . . . . . Largest Inventory Capacity 15 | 8 8 8 8 8 15 Average Capacity 8 | 8 8 8 8 8 14 Most Carried 10 | 6 7 8 8 8 10 Average Carried 7 | 6 6 7 8 7 9 Final Capacity 15 | 8 8 8 8 8 15 Final Carried 8 | 6 7 8 8 8 7 Class Distribution -------------------- 68% | Mutant 21% | Commander-Mutant 9% | Scavenger-Mutant Dominant Class ---------------- Mutant | -10/Materials Mutant | -10/Mines Mutant | -9/Materials Commander-Mutant | -9/Storage Mutant | -8/Materials Resources | -11 -10 -10 -9 -9 -8 ----------- Run | Yrd Mat Min Mat Sto Mat Matter Collected 562 | 200 . 98 41 207 16 Remotely . | . . . . . . Salvage Created 823 | . . 138 59 477 149 Parts 47 | . . 6 1 29 11 Haulers Intercepted 1 | . . . . 1 . Recyclers Shooed 2 | . . 1 1 . . Parts Field Recycled . | . . . . . . Retrieved Matter . | . . . . . . Parts Self-Destructed . | . . . . . . Prevented . | . . . . . . Kills | -11 -10 -10 -9 -9 -8 ------- Run | Yrd Mat Min Mat Sto Mat Combat Hostiles Destroyed 16 | . . 3 . 5 8 Guns 16 | . . 3 . 5 8 Classes Destroyed 7 | . . 2 . 5 . Builder 2 | . . . . 2 . Hauler 1 | . . . . 1 . Recycler 2 | . . 1 1 . . Watcher 1 | . . . . 1 . Swarmer 12 | . . 3 . 2 7 Grunt 8 | . . . . 8 . Sentry 2 | . . . . 1 1 Best Kill Streak 7 | . . 3 1 2 7 Combat Bots Only 7 | . . 3 . 2 7 Max Kills in Single Turn 3 | . . 1 1 3 1 Gunslinging . | . . . . . . Exploded . | . . . . . . Melee . | . . . . . . Uniques/NPCs Destroyed . | . . . . . . Combat | -11 -10 -10 -9 -9 -8 -------- Run | Yrd Mat Min Mat Sto Mat Hostile Shots Fired 189 | . . 24 . 39 126 Missed 57 | . . 3 . 14 40 Damage Taken 1640 | . 48 199 . 399 994 Core 277 | . . 40 . 7 230 Absorbed by Shields . | . . . . . . Regen/Repaired (Parts) 40 | . . . . 40 . Core Remaining (%) 94 | 100 . 84 . 98 . Volleys Fired 125 | 9 . 19 7 53 37 Largest 2 | 2 . 2 2 2 2 Hottest 150 | 70 . 70 90 150 121 Shots Fired 182 | 18 . 38 14 71 41 Gun 176 | 18 . 38 14 65 41 Cannon . | . . . . . . Launcher 5 | . . . . 5 . Special 1 | . . . . 1 . Kinetic 28 | 9 . 19 . . . Thermal 149 | 9 . 19 14 66 41 Explosive 5 | . . . . 5 . Electromagnetic . | . . . . . . Robot Hit Streak 6 | 4 . 6 4 6 5 Robot Miss Streak 5 | 3 . 4 3 5 4 Penetration Max . | . . . . . . Secondary Targets 1 | . . . . . 1 Max Gunslinging Chain 1 | . . . . . 1 Shots Hit Robots 94 | 12 . 21 7 29 25 Core Hits 41 | 1 . 7 2 22 9 Critical Kills 1 | . . 1 . . . Critical Parts Destroyed . | . . . . . . Critical Strikes 11 | . . 2 1 6 2 Burn 10 | . . 1 1 6 2 Destroy 1 | . . 1 . . . Melee Attacks . | . . . . . . Impact . | . . . . . . Slashing . | . . . . . . Piercing . | . . . . . . Sneak Attacks . | . . . . . . Combat Hostiles . | . . . . . . Follow-up Attacks . | . . . . . . Damage Inflicted 1789 | 149 . 261 82 912 385 Guns 1383 | 149 . 261 82 513 378 Cannons . | . . . . . . Explosions 391 | . . . . 391 . Melee . | . . . . . . Ramming 15 | . . . . 8 7 Kinetic 190 | 61 . 129 . . . Thermal 1193 | 88 . 132 82 513 378 Explosive 391 | . . . . 391 . Electromagnetic . | . . . . . . Impact . | . . . . . . Slashing . | . . . . . . Piercing . | . . . . . . Highest Corruption . | . . . . . . Average Corruption . | . . . . . . Corruption Purged . | . . . . . . Corruption Blocked . | . . . . . . Overload Shots . | . . . . . . Overflow Damage . | . . . . . . Projectiles . | . . . . . . Explosions . | . . . . . . Melee . | . . . . . . Knockbacks . | . . . . . . Impact . | . . . . . . Kinetic . | . . . . . . Secondary . | . . . . . . Self-Inflicted Damage 96 | . . . . 96 . Shots 3 | . . . . 3 . Rammed . | . . . . . . Targets Rammed 2 | . . . . 1 1 Kicked 2 | . . . . 1 1 Crushed . | . . . . . . Highest Temperature 117 | 36 . 117 63 54 . Average Temperature 34 | 14 . 59 23 21 . Received Heat Transfer 294 | . . 63 . 105 126 Siege Activations . | . . . . . . Robots Corrupted . | . . . . . . Combat Hostiles . | . . . . . . Parts Fried . | . . . . . . Impact Corruptions . | . . . . . . Robots Melted . | . . . . . . Combat Hostiles . | . . . . . . Parts Melted 8 | . . 1 1 3 3 Heat Transferred 3863 | 259 . 457 297 1740 1110 Parts Sabotaged . | . . . . . . Parts Stolen . | . . . . . . Parts Stripped . | . . . . . . Power Chain Reactions . | . . . . . . Alert | -11 -10 -10 -9 -9 -8 ------- Run | Yrd Mat Min Mat Sto Mat Peak Influence 403 | . . 123 48 403 287 Initial 111 | . . . . 20 111 Average 142 | . . 68 22 197 200 Maximum Alert Level 2 | . . . . 2 1 Low Security (%) 64 | 100 100 100 100 42 45 Level 1 33 | . . . . 54 54 Level 2 1 | . . . . 3 . Level 3 . | . . . . . . Level 4 . | . . . . . . Level 5 . | . . . . . . High Security . | . . . . . . Max Security . | . . . . . . Squads Dispatched 3 | . . . 1 2 . Investigation . | . . . . . . Extermination . | . . . . . . Reinforcement 3 | . . . 1 2 . Assault . | . . . . . . Garrison . | . . . . . . Intercept . | . . . . . . Searches Triggered . | . . . . . . Construction Impeded 1 | . . . . 1 . Haulers Reinforced . | . . . . . . Active Scanning Responses . | . . . . . . Cargo Convoy Interrupts . | . . . . . . Stealth | -11 -10 -10 -9 -9 -8 --------- Run | Yrd Mat Min Mat Sto Mat Distress Signals 6 | . . . . 4 2 Communications Jammed . | . . . . . . Distress Signals . | . . . . . . Times Spotted 44 | . . 5 4 19 16 Peak Tracking Total 6 | . . 3 3 3 6 Tactical Retreats 1 | . . . . . 1 Traps | -11 -10 -10 -9 -9 -8 ------- Run | Yrd Mat Min Mat Sto Mat Traps Triggered 3 | . 2 . . 1 . Indirectly . | . . . . . . Trap Hack Attempts . | . . . . . . Triggered . | . . . . . . Disarmed . | . . . . . . Reprogrammed . | . . . . . . Reused . | . . . . . . Traps Extracted . | . . . . . . Installed . | . . . . . . Triggered . | . . . . . . Machines | -11 -10 -10 -9 -9 -8 ---------- Run | Yrd Mat Min Mat Sto Mat Machines Disabled 2 | . . . . 2 . Max in Single Turn 1 | . . . . 1 . Machines Repaired . | . . . . . . Machines Dismantled . | . . . . . . Machines Sabotaged . | . . . . . . Overloaded Fab Kills . | . . . . . . Hacking | -11 -10 -10 -9 -9 -8 --------- Run | Yrd Mat Min Mat Sto Mat Machines Accessed 11 | . . . . 10 1 Terminals 10 | . . . . 9 1 Fabricators . | . . . . . . Repair Stations 1 | . . . . 1 . Recycling Units . | . . . . . . Scanalyzers . | . . . . . . Garrison Access . | . . . . . . Total Hacks 34 | . . . . 32 2 Successful 20 | . . . . 19 1 Failed 14 | . . . . 13 1 Catastrophic . | . . . . . . Database Lockouts . | . . . . . . Manual 21 | . . . . 20 1 Terminals 32 | . . . . 30 2 Fabricators . | . . . . . . Repair Stations 2 | . . . . 2 . Recycling Units . | . . . . . . Scanalyzers . | . . . . . . Garrison Access . | . . . . . . Terminal Hacks 10 | . . . . 10 . Part Schematic 2 | . . . . 2 . Prototype ID Bank 2 | . . . . 2 . Open Door 2 | . . . . 2 . Emergency Access Points 1 | . . . . 1 . Terminal Index 1 | . . . . 1 . Unreport Threat 1 | . . . . 1 . Locate Traps 1 | . . . . 1 . Fabricator Hacks . | . . . . . . Repair Station Hacks 2 | . . . . 2 . Scan Component 1 | . . . . 1 . Repair 1 | . . . . 1 . Recycling Unit Hacks . | . . . . . . Scanalyzer . | . . . . . . Garrison Access Hacks . | . . . . . . Unauthorized Hacks 8 | . . . . 7 1 Terminals 8 | . . . . 7 1 Botnet 8 | . . . . 7 1 Fabricators . | . . . . . . Repair Stations . | . . . . . . Recycling Units . | . . . . . . Scanalyzers . | . . . . . . Garrison Access . | . . . . . . Data Cores Recovered 1 | . . . . 1 . Used 1 | . . . . 1 . Hacking Detections 10 | . . . . 9 1 Full Trace Events 1 | . . . . 1 . Feedback Events . | . . . . . . Feedback Blocked . | . . . . . . Robot Schematics Acquired . | . . . . . . Robots Built . | . . . . . . Authchips . | . . . . . . Time . | . . . . . . Total Robot Build Rating . | . . . . . . Part Schematics Acquired 2 | . . . . 2 . Parts Built . | . . . . . . Authchips . | . . . . . . Time . | . . . . . . Total Part Build Rating . | . . . . . . Parts Repaired 1 | . . . . 1 . Time 26 | . . . . 26 . Parts Recycled . | . . . . . . Recycled Matter . | . . . . . . Retrieved Matter . | . . . . . . Retrieved Components . | . . . . . . Parts Scanalyzed . | . . . . . . Part Schematics Acquired . | . . . . . . Parts Damaged . | . . . . . . Bothacking | -11 -10 -10 -9 -9 -8 ------------ Run | Yrd Mat Min Mat Sto Mat Used RIF Installer . | . . . . . . Robots Hacked . | . . . . . . Non-combat . | . . . . . . Combat . | . . . . . . Robot Hacks Applied . | . . . . . . Relay Couplers Released . | . . . . . . Fabnet Peak Effective % . | . . . . . . Robots Rewired . | . . . . . . Allies Hacked . | . . . . . . Hacks Repelled . | . . . . . . Allies | -11 -10 -10 -9 -9 -8 -------- Run | Yrd Mat Min Mat Sto Mat Total Allies 14 | . . 3 . 11 . Largest Group 13 | . . 3 3 13 2 Highest-Rated Group 128 | . . 40 40 128 108 Highest-Rated Ally 100 | . . 16 16 100 100 Total Orders 2 | . . . . 2 . EXPLORE 2 | . . . . 2 . Ally Attacks 150 | . . 5 9 132 4 Total Damage 1513 | . . 50 55 1376 32 Kills 22 | . . 2 2 18 . Allies Corrupted . | . . . . . . Allies Melted . | . . . . . . Intel | -11 -10 -10 -9 -9 -8 ------- Run | Yrd Mat Min Mat Sto Mat Robot Analysis Total . | . . . . . . Derelict Logs Recovered 1 | . . 1 . . . Drone Launches 2 | . . . . 2 . Drone Recoveries . | . . . . . . Exploration | -11 -10 -10 -9 -9 -8 ------------- Run | Yrd Mat Min Mat Sto Mat Turns Passed 1893 | 67 57 503 83 910 273 Spaces Moved 1138 | 34 47 339 50 547 121 Core . | . . . . . . Treads . | . . . . . . Legs 1138 | 34 47 339 50 547 121 Wheels . | . . . . . . Hover . | . . . . . . Flight . | . . . . . . Fastest Speed 120 | 120 120 120 120 120 120 Average Speed 121 | 120 120 121 120 120 129 Slowest Speed 190 | 120 120 190 120 120 190 Overloaded Moves . | . . . . . . Propulsion Burnouts . | . . . . . . Robots Hopped . | . . . . . . Cave-ins Triggered . | . . . . . . Exploration Rate (%) 35 | 4 15 84 8 83 18 Regions Visited 5 Branch Regions 2 Pre-discovered Areas 1 | . . 1 . . . Known Exits Taken . | . . . . . . Unknown Exits Taken 5 | 1 1 1 1 1 . Scrap Searched 2 | . . 2 . . . Spaces Dug . | . . . . . . Terrain Destroyed 40 | . . . . 40 . Melee . | . . . . . . Projectile . | . . . . . . AOE 40 | . . . . 40 . Terrain Rammed . | . . . . . . Walls Destroyed . | . . . . . . Machines Disabled . | . . . . . . Actions | -11 -10 -10 -9 -9 -8 --------- Run | Yrd Mat Min Mat Sto Mat Total 1467 | 42 47 392 58 733 195 Wait 146 | . . 25 . 92 29 Move 1133 | 33 46 338 49 546 121 Hop . | . . . . . . Pick Up 14 | . 1 3 . 8 2 Fast Attach 6 | . . 1 2 2 1 Attach 6 | . . . . 3 3 Detach . | . . . . . . Swap 14 | . . 3 . 11 . Drop 20 | . . 3 . 16 1 Fire 125 | 9 . 19 7 53 37 Melee . | . . . . . . Ram . | . . . . . . Kick 2 | . . . . 1 1 Crush . | . . . . . . Escape Stasis . | . . . . . . Rewire 1 | . . . . 1 . Trap . | . . . . . . Miscellaneous . | . . . . . . Route ------- -11/Scrapyard -10/Materials -10/Mines (discovered 2 exits: [*Mat x2]) -9/Materials -9/Storage -8/Materials History --------- Turn | Location | Event 1 | -11/Scrapyard | Discovered new exit (range 1) 68 | -11/Scrapyard | Entered Materials 97 | -10/Materials | Discovered new exit (range 13) 125 | -10/Materials | Entered Mines 192 | -10/Mines | Discovered new exit (range 13) 214 | -10/Mines | Assisted by bots powering up and referring to "LRC-V3" 316 | -10/Mines | Build established: Mutant 446 | -10/Mines | Learned location of Zion (-6) 490 | -10/Mines | Discovered new exit (range 8) 516 | -10/Mines | Received a Rocket Launcher from a helpful Derelict 628 | -10/Mines | Entered Materials 628 | -9/Materials | Accompanied by 3 allies 628 | -9/Materials | Evolved 2 slots: Propulsion x2 673 | -9/Materials | Discovered new exit (range 14) 711 | -9/Materials | Entered Storage 711 | -9/Storage | Accompanied by 3 allies 888 | -9/Storage | Assisted by bots powering up and referring to "LRC-V3" 1131 | -9/Storage | Repaired Ion Engine 1190 | -9/Storage | Build established: Commander-Mutant 1331 | -9/Storage | Murdered 5 allies 1369 | -9/Storage | Discovered new exit (range 15) 1505 | -9/Storage | Met 01-MTF 1607 | -9/Storage | Build established: Mutant 1621 | -9/Storage | Entered Materials 1621 | -8/Materials | Accompanied by 2 allies (01-MTF) 1621 | -8/Materials | Evolved 2 slots: Utility x1, Weapon x1 1626 | -8/Materials | 01-MTF left 1808 | -8/Materials | Destroyed 7 combat bots 1841 | -8/Materials | Lost 4 parts (1p1n2w) 1883 | -8/Materials | Lost 3 parts (3n) 1894 | -8/Materials | Self-destructed Last Messages --------------- 01827_ Penetrated by Slug. 01833_ Kicked H-55 Commando out of the way. 01833_ Penetrated by Slug. 01834_ Acquired 6 matter. 01836_ Slug penetrates W-25 Informer. 01839_ Slug penetrates Wall. 01841_ U-05 Engineer builds a Wall. 01843_ Slug penetrates Wall. 01845_ T-07 Excavator is excavating. 01848_ Penetrated by Slug. 01848_ Imp. Aluminum Leg destroyed. 01851_ Penetrated by Slug. 01851_ Imp. Aluminum Leg destroyed. 01856_ M-13 Machinist repairs H-55 Commando. 01857_ U-05 Engineer destroyed. 01868_ K-01 Serf cleans the Terminal. 01871_ Slug penetrates G-47 Trooper. 01876_ Terminal disabled. 01881_ K-01 Serf collects debris. 01883_ Ion Engine destroyed. Map ----- +----------------------------------------------------+ | ????????????## ?# #? #????????????????? | | ?????????????## ?##?# #?###????????????????? | | ??????????????##?????# #????????????????????? | | ?????????????????????# #????????????????????? | | ?????????????????????# #????????????????????? | | ?????????????????????# #???#######??????????? | | ?????????????????????# #?? #??????????? | | ????????????????????## ##? #??????????? | | ??????????########### # #??????????? | | ?????????? # #??????????? | | ????????? + #??????????? | | ?????????? # #??????????? | | ???????????######+### # #??????????? | | ????????????????????## ##? #??????????? | | ?????????????????????# #?? #??????????? | | ?????????????????????# #???#######??????????? | | ?????????????????????# #????????????????????? | | ?????????????????????# ##### #??????????? | | ?????????????????????# #??????????? | | ?????????????????????# ##### #??????????? | | ???????????????????####+#####?????????????????? | | ???????????????????# !#?????????????????? | | ???????????????????# #?????????????????? | | ???????????????????# """ #?????????????????? | | ???????????????????#""""" #?????????????????? | | ???????????????????#"""""@ #?????????????????? | | ???????????????????#""""" #?????????????????? | | ???????????????????# """ #?????????????????? | | ???????????????????? #?????????????????? | | ???????????????????# #?????????????????? | | ???????????????????##########?????????????????? | | ??????????????????????????????????????????????? | | ??????????????????????????????????????????????? | | ??????????????????????????????????????????????? | | ??????????????????????????????????????????????? | | ??????????????????????????????????????????????? | | ??????????????????????????????????????????????? | | ??????????????????????????????????????????????? | | ??????????????????????????????????????????????? | | ??????????????????????????????????????????????? | | ??????????????????????????????????????????????? | | ??????????????????????????????????????????????? | | ??????????????????????????????????????????????? | | ??????????????????????????????????????????????? | | ??????????????????????????????????????????????? | | ??????????????????????????????????????????????? | | ??????????????????????????????????????????????? | | ??????????????????????????????????????????????? | | ??????????????????????????????????????????????? | | ??????????????????????????????????????????????? | +----------------------------------------------------+ Best States ------------- Heat Dissipation 53 Energy Generation 10 Energy Capacity 250 Matter Stores 300 Matter Capacity 300 Sight Range 16 Terrain Scan Density 10 Evasion (%) 55 Item Schematics ----------------- Imp. Treads | -9/Storage | Hacked Imp. Signal Interpreter | -9/Storage | Hacked Robot Schematics ------------------ None Fabricated ------------ Nothing Alien Tech Used ----------------- None Achievements -------------- Collateral Damage Challenges ------------ None Game ------ Seed GreatSurveybotNanoactuators Manual? 0 Play Time 00:17:21 Cumulative 137.0 hours Start 2024.04.29 @ 16:54:11 End 2024.04.29 @ 17:09:12 Sessions 1 Manual Loads 0 Difficulty Rogue Special Mode None Game No. 265 Rogue 265 Adventurer 0 Explorer 0 Win Type - Total 0 Types 0/0/0/0/0/0/0/0/0 Lore% 35 Gallery% 49 Achievement% 34 Wizard Run 0 Options --------- Layout 1 ASCII 0 Keyboard 0 Movement Mouse Keybinds 0 Fullscreen 1 Font 24/Smallcaps Map View 50x40 Zoom Use 0% Tactical HUD 1 Map Filters NONE Filters NONE Steam 1 RUN: 5c30228f-9933-4495-8c39-d152ee360b3b